bitfinex/quotes_ETHUSD_20250731
["timestamp","ask_amount","ask_price","bid_price","bid_amount"]
[1753969787277,2.62556777,3808.7,3808.6,0.9889]
[1753969787481,2.62575602,3808.5,3808.1,0.98890001]
[1753969787677,2.86873461,3808.7,3808.1,0.98890001]
[1753969787678,2.6259125,3808.2,3808.1,1e-08]
[1753969787907,3.15108615,3808.2,3808.1,1e-08]
[1753969788211,9.72508615,3808.2,3808.1,1e-08]
[1753969789118,21.52417714,3808.2,3808.1,1e-08]
[1753969789268,22.47707714,3808.2,3808.1,1e-08]
[1753969789595,22.72025111,3808.2,3808.1,1e-08]
[1753969790836,26.92425111,3808.2,3808.1,1e-08]
[1753969791132,18.12516012,3808.2,3808.1,1e-08]
[1753969792003,27.47425111,3808.2,3808.1,1e-08]
[1753969792428,22.72025111,3808.2,3808.1,1e-08]
[1753969792639,26.92425111,3808.2,3808.1,1e-08]
[1753969792805,22.7200377,3808.2,3808.1,1e-08]
[1753969793141,13.92094671,3808.2,3808.1,1e-08]
[1753969793366,13.67798615,3808.2,3808.1,1e-08]
[1753969793548,16.92908615,3808.2,3808.1,1e-08]
[1753969794222,9.1999125,3808.2,3808.1,1e-08]
[1753969794429,13.4039125,3808.2,3808.1,1e-08]
[1753969794962,13.64684149,3808.2,3808.1,1e-08]
[1753969795255,17.55624149,3808.2,3808.1,1e-08]
[1753969795607,17.55621374,3808.2,3808.1,1e-08]
[1753969795812,20.1420974,3808.2,3808.1,1e-08]
[1753969796607,20.6920974,3808.2,3808.1,1e-08]
[1753969797143,20.8232974,3808.2,3808.1,1e-08]
[1753969798849,21.06600378,3808.2,3808.1,1e-08]
[1753969799543,16.86200378,3808.2,3808.1,1e-08]
[1753969799740,21.06500378,3808.2,3808.1,1e-08]
[1753969800142,3.17618835,3807.8,3807.7,1e-08]
[1753969800341,13.96661228,3807.8,3807.7,1e-08]
[1753969800529,17.58840974,3807.8,3807.7,1e-08]
[1753969800730,13.51660974,3807.8,3807.7,1e-08]
[1753969801160,12.57614546,3807.8,3807.7,1e-08]
[1753969801364,18.55611969,3807.8,3807.7,1e-08]
[1753969801938,18.79882686,3807.8,3807.7,1e-08]
[1753969802955,14.35311969,3807.8,3807.7,1e-08]
[1753969803273,16.53638835,3807.8,3807.7,1e-08]
[1753969803455,16.77903431,3807.8,3807.7,1e-08]
[1753969803658,16.77903329,3807.8,3807.7,1e-08]
[1753969803967,25.1640425,3807.8,3807.7,1e-08]
[1753969804274,25.4066425,3807.8,3807.7,1e-08]
[1753969804435,25.4066425,3807.8,3806.7,1e-08]
[1753969804436,0.55,3807.1,3806.7,1e-08]
[1753969804769,5.62687821,3806.8,3806.7,1e-08]
[1753969804970,10.07252315,3806.8,3806.7,1e-08]
[1753969805343,11.06692315,3806.8,3806.7,1e-08]
[1753969805532,13.54285661,3806.8,3806.7,1e-08]
[1753969805761,14.09185661,3806.8,3806.7,1e-08]
[1753969805963,14.33415158,3806.8,3806.7,1e-08]
[1753969806160,9.33985661,3806.8,3806.7,1e-08]
[1753969806398,3.00027398,3806.8,3806.7,1e-08]
[1753969806602,2.75807821,3806.8,3806.7,1e-08]
[1753969807207,0.1312,3806.8,3806.7,1e-08]
[1753969807681,2.75807821,3806.8,3806.7,1e-08]
[1753969809683,6.96007821,3806.8,3806.7,1e-08]
[1753969809895,8.67145044,3806.8,3806.7,1e-08]
[1753969810085,11.91368004,3806.8,3806.7,1e-08]
[1753969810286,11.67145044,3806.8,3806.7,1e-08]
[1753969811414,11.91370546,3806.8,3806.7,1e-08]
[1753969811616,12.46370546,3806.8,3806.7,1e-08]
[1753969812187,12.70601329,3806.8,3806.7,1e-08]
[1753969812513,12.46370546,3806.8,3806.7,1e-08]
[1753969812715,2.62729231,3806.2,3806.1,1e-08]
[1753969812920,17.74194733,3806.2,3806.1,1e-08]
[1753969813085,17.49969231,3806.2,3806.1,1e-08]
[1753969813480,18.04969231,3806.2,3806.1,1e-08]
[1753969813927,18.53393939,3806.2,3806.1,1e-08]
[1753969814098,20.65005422,3806.2,3806.1,1e-08]
[1753969814302,20.40793068,3806.2,3806.1,1e-08]
[1753969815525,15.96380714,3806.2,3806.1,1e-08]
[1753969816013,20.16580714,3806.2,3806.1,1e-08]
[1753969816588,3.56880017,3805.4,3804.4,0.9303]
[1753969816788,3.56880017,3805.4,3804.1,0.04]
[1753969816789,2.62867357,3804.2,3804.1,0.04]
[1753969817798,2.75987357,3804.2,3804.1,0.04]
[1753969818333,0.1312,3804.2,3804.1,0.04]
[1753969819030,0.1312,3804.2,3804.1,2.66874267]
[1753969819239,0.1312,3804.2,3804.1,2.66974267]
[1753969819403,0.1312,3804.2,3804.1,4.22303461]
[1753969819589,0.1312,3804.5,3804.4,2.62853538]
[1753969819792,0.1312,3804.5,3804.4,3.55883538]
[1753969820404,6.579,3805.2,3804.8,2.62821996]
[1753969820746,6.579,3805.2,3804.9,0.9009]
[1753969820956,2.62791444,3805.3,3804.9,0.9009]
[1753969821150,0.1312,3805.0,3804.9,0.9009]
[1753969822365,0.1312,3805.0,3804.9,3.52908996]
[1753969822659,0.1312,3805.2,3805.1,2.62800256]
[1753969823853,0.1312,3805.2,3805.0,3.53000611]
[1753969824050,0.1312,3805.2,3805.1,2.62805182]
[1753969824455,0.1312,3805.2,3805.0,0.9019]
[1753969824659,0.1312,3805.2,3805.0,3.52995371]
[1753969824870,0.1312,3805.2,3805.0,0.9019]
[1753969825080,0.1312,3805.2,3805.0,3.53001696]
[1753969825808,0.1312,3805.2,3805.0,0.9019]
[1753969826254,0.40710793,3805.2,3805.0,0.9019]
[1753969826450,0.1312,3805.2,3805.0,0.9019]
[1753969826893,6.578,3805.3,3805.0,0.9019]
[1753969827088,0.1312,3805.1,3805.0,0.9019]
[1753969827455,0.1312,3805.1,3805.0,3.53002089]
[1753969827655,6.578,3805.8,3805.0,0.9019]
[1753969827901,0.1312,3805.6,3805.2,0.9839]
[1753969828082,0.1312,3805.6,3805.5,2.62777089]
[1753969828799,0.1312,3805.6,3805.4,2.62781874]
[1753969828996,0.1312,3805.6,3805.4,2.62782785]
[1753969829158,0.1312,3805.6,3805.3,2.62788973]
[1753969829353,0.1312,3805.6,3805.5,4.16167558]
[1753969829604,0.1312,3805.6,3805.5,7.36116937]
[1753969829903,0.1312,3806.4,3806.3,0.9728]
[1753969830105,0.1312,3806.4,3806.3,3.60002328]
[1753969830715,0.1312,3806.4,3806.3,0.9728]
[1753969831059,0.1312,3806.4,3806.3,3.60002328]
[1753969831266,0.04,3806.9,3806.8,2.62687821]
[1753969831470,0.1712,3806.9,3806.8,7.74277821]
[1753969832508,0.1712,3806.9,3806.8,5.1159]
[1753969833497,0.1712,3806.9,3806.8,0.9169]
[1753969833664,0.1712,3806.9,3806.8,5.1159]
[1753969833871,2.79800921,3806.9,3806.8,4.198]
[1753969834072,1.11162118,3806.9,3806.4,0.9591]
[1753969834293,0.04,3806.9,3806.7,4.198]
[1753969834467,2.66681213,3806.9,3806.7,4.198]
[1753969834664,2.75807821,3806.8,3806.7,4.198]
[1753969835282,0.1312,3806.8,3806.7,4.198]
[1753969835815,2.75807821,3806.8,3806.7,4.198]
[1753969836003,0.1312,3806.8,3806.7,4.198]
[1753969836896,0.1312,3806.8,3806.7,4.197]
[1753969837109,0.04,3806.9,3806.8,7.08157821]
[1753969837420,0.04,3807.9,3807.7,7.08095732]
[1753969837622,0.04,3807.9,3807.7,11.40915732]
[1753969837821,0.04,3807.9,3807.7,12.27824732]
[1753969838318,0.002,3808.2,3808.1,1.5183]
[1753969838482,0.002,3808.2,3808.1,11.34128146]
[1753969838681,0.24217085,3808.8,3808.7,2.62556777]
[1753969839022,0.04,3808.9,3808.8,2.75669884]
[1753969839221,0.04,3808.9,3808.8,6.14120884]
[1753969840092,0.04,3808.9,3808.7,5.1226]
[1753969841020,0.28196679,3808.9,3808.7,7.74816601]
[1753969841515,0.28196679,3808.9,3808.7,5.1226]
[1753969842283,0.1312,3808.8,3808.7,4.197]
[1753969842515,0.37316679,3808.8,3808.7,4.197]
[1753969843390,0.37316679,3808.8,3808.7,4.195]
[1753969843593,2.99866563,3808.8,3808.7,4.195]
[1753969843800,3.56547089,3808.8,3808.7,4.195]
[1753969844011,3.56547089,3808.8,3808.3,4.195]
[1753969844177,0.56680526,3808.8,3808.3,4.195]
[1753969844383,0.1312,3808.4,3808.3,4.195]
[1753969845827,2.62575772,3808.5,3808.3,4.195]
[1753969846044,0.71808053,3808.7,3808.3,4.195]
[1753969846840,0.042,3808.9,3808.4,2.62571031]
[1753969847039,0.042,3808.9,3808.3,6.82083616]
[1753969847389,0.042,3808.9,3808.3,4.195]
[1753969847589,2.62551337,3808.8,3808.3,4.195]
[1753969848040,0.042,3808.9,3808.3,4.195]
[1753969848589,0.042,3808.9,3808.5,2.62565382]
[1753969848900,0.042,3808.9,3808.6,4.194]
[1753969849306,0.042,3808.9,3808.7,0.9361]
[1753969849923,0.3091315,3808.9,3808.7,0.9361]
[1753969850122,2.62556777,3808.7,3808.6,4.194]
[1753969850744,2.86799997,3808.7,3808.6,4.194]
[1753969852721,0.2424322,3808.7,3808.3,4.193]
[1753969852922,2.6257746,3808.4,3808.3,4.193]
[1753969853293,2.86828272,3808.4,3808.3,4.193]
[1753969853490,3.41767743,3808.4,3808.3,4.193]
[1753969853811,2.62631523,3807.7,3807.1,0.8602]
[1753969854015,2.62598146,3808.1,3807.1,0.8602]
[1753969854192,2.62598146,3808.1,3806.4,2.62710893]
[1753969854193,0.833,3807.3,3806.4,0.8602]
[1753969854386,2.65780476,3807.2,3806.4,4.192]
[1753969854592,2.62708524,3806.5,3806.4,4.192]
[1753969855306,6.92408048,3807.2,3806.4,4.192]
[1753969855607,0.1312,3806.5,3806.4,4.192]
[1753969856338,6.575,3807.2,3806.4,4.192]
[1753969856492,0.1312,3806.6,3806.4,4.192]
[1753969857550,6.575,3807.2,3806.4,4.87793568]
[1753969857695,0.1312,3806.9,3806.5,0.8184]
[1753969857897,2.62696229,3806.7,3806.5,0.8184]
[1753969858198,0.1312,3806.7,3806.1,0.1712]
[1753969858531,3.0,3807.2,3806.1,0.04]
[1753969858532,2.62729231,3806.2,3806.1,0.04]
[1753969858747,2.62729231,3806.2,3806.1,4.232]
[1753969858950,0.1312,3806.2,3806.1,4.232]
[1753969859833,2.75849231,3806.2,3806.1,4.232]
[1753969860541,3.29705073,3806.2,3806.1,0.04]
[1753969860694,3.32825327,3806.2,3806.1,0.04]
[1753969860900,3.29705073,3806.2,3806.1,0.04]
[1753969863940,3.29705073,3806.2,3806.1,0.041]
[1753969863941,0.66975842,3806.2,3806.1,0.041]
[1753969864438,0.1312,3806.2,3806.1,0.041]
[1753969865039,0.1312,3806.2,3806.1,2.66836134]
[1753969865242,0.1312,3806.2,3806.1,0.041]
[1753969865439,0.1312,3806.2,3806.1,2.66836134]
[1753969865786,0.1312,3806.4,3806.2,0.8624]
[1753969865960,0.1312,3806.4,3806.3,2.62722328]
[1753969866612,0.1312,3806.4,3806.1,0.041]
[1753969866812,2.62729231,3806.2,3806.1,0.041]
[1753969867055,9.33549231,3806.2,3806.1,0.041]
[1753969867563,6.7082,3806.2,3806.1,0.041]
[1753969867708,0.1312,3806.2,3806.1,5.1258]
[1753969867907,2.62674711,3807.0,3806.2,2.62729231]
[1753969868107,0.1312,3806.4,3806.1,8.52847483]
[1753969868344,0.1312,3806.4,3806.3,2.62722328]
[1753969868720,0.1312,3806.4,3806.1,5.90112695]
[1753969868927,6.576,3807.2,3806.2,0.02627292]
[1753969869142,0.24312084,3807.1,3806.7,2.62692995]
[1753969869448,6.576,3807.2,3806.8,2.62686942]
[1753969869654,0.1312,3806.9,3806.8,2.62687821]
[1753969869857,0.1312,3806.9,3806.7,4.191]
[1753969870456,0.37427982,3806.9,3806.7,4.191]
[1753969870831,0.1312,3806.9,3806.7,4.191]
[1753969871034,0.37423373,3806.9,3806.7,4.191]
[1753969871234,0.1312,3806.9,3806.8,2.62687821]
[1753969871445,0.1312,3806.9,3806.7,6.81792426]
[1753969871745,2.75805143,3806.9,3806.7,4.19]
[1753969871925,0.16240254,3806.9,3806.3,0.001]
[1753969872120,7.68693772,3806.8,3806.3,0.001]
[1753969872324,2.62713012,3806.5,3806.3,0.001]
[1753969872524,2.62715426,3806.4,3806.3,0.001]
[1753969872727,0.1312,3806.4,3806.3,0.001]
[1753969873298,2.75835426,3806.4,3806.3,0.001]
[1753969873477,9.87289211,3806.4,3806.3,0.001]
[1753969873823,13.68669211,3806.4,3806.3,0.001]
[1753969874586,13.92952649,3806.4,3806.3,0.001]
[1753969874725,6.7072,3806.4,3806.3,0.001]
[1753969874924,2.75835426,3806.4,3806.3,0.001]
[1753969875254,0.1312,3806.4,3806.3,0.001]
[1753969875759,2.75835426,3806.4,3806.3,0.001]
[1753969875977,4.28881479,3806.4,3806.3,0.001]
[1753969876336,4.25761225,3806.4,3806.3,0.001]
[1753969876537,5.18341479,3806.4,3806.3,0.001]
[1753969876767,5.15221225,3806.4,3806.3,0.001]
[1753969877581,9.21101225,3806.4,3806.3,0.001]
[1753969877767,12.34221225,3806.4,3806.3,0.001]
[1753969878138,8.15221225,3806.4,3806.3,0.001]
[1753969880479,7.25761225,3806.4,3806.3,0.001]
[1753969881289,0.1312,3806.4,3806.3,0.001]
[1753969881485,6.576,3806.7,3806.3,0.001]
[1753969881720,0.1312,3806.4,3806.3,0.001]
[1753969882106,2.75835426,3806.4,3806.3,0.001]
[1753969882413,13.74969954,3806.4,3806.3,0.001]
[1753969882727,13.96125866,3806.4,3806.3,0.001]
[1753969882923,13.96125594,3806.4,3806.3,0.001]
[1753969885511,18.14925594,3806.4,3806.3,0.001]
[1753969885712,17.6107132,3806.4,3806.3,0.001]
[1753969886038,12.5771132,3806.4,3806.3,0.001]
[1753969886222,6.7072,3806.4,3806.3,0.001]
[1753969886422,0.1312,3806.4,3806.3,2.62822328]
[1753969887114,0.24296408,3806.8,3806.5,2.62704616]
[1753969887437,0.24296408,3806.8,3806.7,2.62694722]
[1753969887733,0.1312,3806.8,3806.6,3.48699968]
[1753969887939,0.1312,3806.8,3806.6,0.86]
[1753969888370,0.789658,3807.4,3806.9,2.62680921]
[1753969888371,0.24296408,3807.0,3806.9,2.62680921]
[1753969888503,0.1312,3807.4,3806.9,4.188]
[1753969888703,0.1312,3807.4,3807.1,2.62666777]
[1753969889035,0.1312,3807.4,3807.0,2.6267346]
[1753969889234,0.1312,3807.4,3806.9,4.188]
[1753969889421,0.1312,3807.1,3806.9,6.81478622]
[1753969889831,0.1312,3807.1,3806.9,4.188]
[1753969890414,0.1312,3807.1,3807.0,4.187]
[1753969890838,2.62633888,3807.6,3807.0,4.187]
[1753969891039,0.1312,3807.1,3807.0,4.187]
[1753969892134,0.37449267,3807.1,3807.0,4.187]
[1753969892647,0.1312,3807.1,3807.0,4.187]
[1753969892833,0.37449267,3807.1,3807.0,4.187]
[1753969893336,3.00116388,3807.1,3807.0,4.187]
[1753969893716,0.37449267,3807.1,3806.3,0.9514]
[1753969893911,0.1312,3806.7,3806.4,4.186]
[1753969894214,0.1312,3806.5,3806.4,4.186]
[1753969895323,2.75828524,3806.5,3806.3,0.001]
[1753969895632,2.62715426,3806.4,3806.3,0.001]
[1753969895832,9.82387403,3806.4,3806.3,0.001]
[1753969896270,6.577,3806.4,3806.3,0.001]
[1753969896416,0.1312,3806.5,3806.3,0.001]
[1753969896759,2.62715426,3806.4,3806.3,0.001]
[1753969896964,6.576,3806.8,3806.3,0.001]
[1753969897121,9.20293552,3806.8,3806.3,0.001]
[1753969897448,2.62703003,3806.6,3806.3,0.001]
[1753969897658,3.81001788,3806.6,3806.3,0.001]
[1753969897817,2.62715426,3806.4,3806.3,0.001]
[1753969898669,9.20315426,3806.4,3806.3,0.001]
[1753969899017,6.576,3806.4,3806.3,0.001]
[1753969899417,4.185,3806.9,3806.3,0.001]
[1753969899418,2.62656747,3807.3,3806.3,0.001]
[1753969899660,2.62709341,3806.5,3806.3,0.001]
[1753969899868,2.6270391,3806.6,3806.3,0.001]
[1753969900537,2.62715426,3806.4,3806.3,0.001]
[1753969900731,9.4466372,3806.4,3806.3,0.001]
[1753969901380,9.20315426,3806.4,3806.3,0.001]
[1753969901678,10.08914102,3806.4,3806.3,0.001]
[1753969902329,9.20315426,3806.4,3806.3,0.001]
[1753969902767,9.44667577,3806.4,3806.3,0.001]
[1753969902975,6.576,3806.4,3806.3,0.001]
[1753969903182,2.62647014,3807.4,3806.3,0.001]
[1753969903183,6.576,3806.9,3806.3,0.8675]
[1753969903477,2.62639502,3807.6,3806.8,2.62682654]
[1753969903676,0.243553,3807.5,3806.9,5.0706]
[1753969903832,0.243553,3807.4,3806.9,5.0706]
[1753969904173,0.243553,3807.3,3806.9,5.0706]
[1753969904464,0.243553,3807.2,3806.9,5.0706]
[1753969904666,0.243553,3807.1,3806.9,5.0706]
[1753969904968,2.62662209,3807.2,3806.9,5.0706]
[1753969905195,0.2435787,3807.1,3806.9,5.0706]
[1753969905495,2.62618835,3807.8,3806.9,8.46715277]
[1753969905664,0.24358927,3807.7,3807.0,2.6267174]
[1753969905979,0.24358927,3807.6,3807.1,2.62666077]
[1753969906177,0.24358927,3807.5,3807.1,2.62666077]
[1753969906380,0.24358927,3807.4,3806.9,8.46715128]
[1753969906586,0.24358927,3807.3,3807.0,2.62671883]
[1753969906749,2.6262587,3807.7,3807.0,3.24177929]
[1753969906957,0.1312,3807.4,3807.3,2.62653323]
[1753969907164,0.1312,3807.4,3807.0,0.61503908]
[1753969907349,0.3747693,3807.4,3807.1,2.62662567]
[1753969907549,0.2435693,3807.3,3807.1,2.62662567]
[1753969907750,0.1312,3807.4,3807.1,2.62662567]
[1753969908282,0.1312,3807.4,3806.9,7.69735134]
[1753969908490,0.1312,3807.4,3806.9,5.0706]
[1753969908644,0.1312,3807.4,3807.1,2.62662079]
[1753969908846,0.1312,3807.4,3806.9,5.59078]
[1753969909084,0.1312,3807.4,3807.0,2.62672089]
[1753969909590,0.1312,3807.4,3806.9,8.21757903]
[1753969909776,0.1312,3807.4,3807.0,2.62669316]
[1753969909948,0.1312,3807.4,3807.1,2.62666443]
[1753969910350,0.1312,3807.4,3807.0,2.62672663]
[1753969910552,0.1312,3807.4,3807.1,2.62667077]
[1753969910765,0.1312,3807.4,3806.9,5.59078]
[1753969910968,0.1312,3807.4,3806.9,7.69740409]
[1753969911200,2.75766788,3807.4,3806.9,5.0706]
[1753969911486,2.75766788,3807.4,3807.0,4.182]
[1753969911487,2.62667121,3807.1,3807.0,4.182]
[1753969911984,2.75787121,3807.1,3807.0,4.182]
[1753969912145,4.04123855,3807.1,3807.0,4.182]
[1753969912343,1.41456734,3807.1,3806.3,0.001]
[1753969912548,2.62674021,3807.0,3806.4,4.181]
[1753969912790,2.75835426,3806.4,3806.3,0.001]
[1753969913090,12.33535426,3806.4,3806.3,0.001]
[1753969913292,13.91493216,3806.4,3806.3,0.001]
[1753969914292,10.91493216,3806.4,3806.3,0.001]
[1753969914595,9.33535426,3806.4,3806.3,0.001]
[1753969915482,9.57891711,3806.4,3806.3,0.001]
[1753969915669,9.33535426,3806.4,3806.3,0.001]
[1753969917385,6.7082,3806.4,3806.3,0.001]
[1753969917592,0.1312,3806.4,3806.3,0.001]
[1753969917791,2.75835426,3806.4,3806.3,0.001]
[1753969917962,3.00201987,3806.4,3806.3,0.001]
[1753969918293,0.37486561,3806.4,3806.3,0.001]
[1753969919294,0.1312,3806.4,3806.3,0.001]
[1753969921396,0.1312,3806.4,3806.3,3.45222328]
[1753969921580,0.1312,3806.4,3806.3,1.43705799]
[1753969921901,0.1312,3806.4,3806.3,0.001]
[1753969922056,3.60345426,3806.4,3806.3,0.001]
[1753969922395,13.18045426,3806.4,3806.3,0.001]
[1753969923164,10.18045426,3806.4,3806.3,0.001]
[1753969923768,13.18045426,3806.4,3806.3,0.001]
[1753969924193,14.76120695,3806.4,3806.3,0.001]
[1753969925304,10.18045426,3806.4,3806.3,0.001]
[1753969925674,10.42372502,3806.4,3806.3,0.001]
[1753969926090,9.57862502,3806.4,3806.3,0.001]
[1753969926287,0.37447076,3806.4,3806.3,0.8126]
[1753969926494,0.1312,3806.4,3806.3,0.001]
[1753969926866,0.37442422,3806.4,3806.3,0.001]
[1753969927082,0.1312,3806.4,3806.3,0.001]
[1753969930192,0.1312,3806.4,3806.3,3.57579067]
[1753969930402,0.24319703,3807.1,3806.4,0.8135]
[1753969930607,0.24319703,3807.0,3806.9,2.62678292]
[1753969930808,0.1312,3807.1,3806.9,4.178]
[1753969931167,0.1312,3807.1,3807.0,2.62674021]
[1753969931414,0.1312,3807.1,3807.0,3.06397282]
[1753969931567,0.1312,3807.1,3807.0,1.29863261]
[1753969931972,0.1312,3807.1,3807.0,3.92537282]
[1753969932172,0.1312,3807.4,3807.3,2.62651214]
[1753969933206,0.1312,3807.4,3807.0,1.29863261]
[1753969933437,0.1312,3807.4,3807.1,0.82345794]
[1753969933631,2.7576782,3807.4,3807.2,4.177]
[1753969933913,2.62653323,3807.3,3807.2,4.177]
[1753969934108,2.75773323,3807.3,3807.2,4.177]
[1753969934312,0.1312,3807.3,3807.2,4.177]
[1753969936690,0.1312,3807.3,3807.2,4.176]
[1753969937015,2.75776976,3807.3,3807.2,4.176]
[1753969937258,0.1312,3807.3,3807.2,4.176]
[1753969939545,0.4069614,3807.3,3807.1,4.175]
[1753969939716,6.575,3807.2,3807.1,4.175]
[1753969939919,2.75777472,3807.3,3807.1,4.175]
[1753969940144,0.1312,3807.2,3807.1,4.175]
[1753969941032,0.1312,3807.2,3807.1,2.62667121]
[1753969941179,6.574,3807.8,3807.3,2.62648631]
[1753969941340,0.1312,3807.4,3807.3,2.62648631]
[1753969941976,0.002,3808.2,3807.3,1.03241575]
[1753969942279,0.002,3808.2,3808.1,2.62598146]
[1753969942476,0.002,3808.2,3808.1,7.61918146]
[1753969943346,0.002,3808.2,3808.1,4.9932]
[1753969943679,2.62796214,3808.2,3807.5,2.62635309]
[1753969943865,2.62796214,3808.2,3807.6,4.174]
[1753969944064,0.002,3808.2,3807.6,6.80027998]
[1753969944448,0.002,3808.2,3807.7,2.62625636]
[1753969944649,2.6279297,3808.2,3807.6,6.80030904]
[1753969944850,0.002,3808.2,3807.6,6.80030904]
[1753969945049,0.002,3808.2,3807.6,6.80030304]
[1753969945263,0.002,3808.2,3807.6,5.11667588]
[1753969945468,0.002,3808.2,3808.1,2.62598146]
[1753969945778,0.002,3808.2,3808.1,6.79898146]
[1753969948386,0.002,3808.2,3808.1,8.19328146]
[1753969948553,0.002,3808.2,3808.1,11.19328146]
[1753969952265,0.002,3808.2,3808.1,11.32448146]
[1753969952475,1e-08,3808.2,3808.1,11.32448146]
[1753969952798,1e-08,3808.9,3808.8,7.03589884]
[1753969952996,1e-08,3808.9,3808.8,20.0299241]
[1753969953359,1e-08,3808.9,3808.8,20.1611241]
[1753969955999,1e-08,3808.9,3808.8,20.35735814]
[1753969957063,0.002,3810.0,3809.1,3.17529206]
[1753969957248,0.002,3810.0,3809.1,11.20544498]
[1753969957451,0.002,3810.0,3809.1,11.31039206]
[1753969959956,1e-08,3809.5,3809.1,11.31039206]
[1753969960167,0.002,3810.0,3809.8,15.29703496]
[1753969960453,0.002,3810.0,3809.8,20.01403496]
[1753969960653,0.002,3810.0,3809.8,20.14523496]
[1753969961354,1e-08,3810.0,3809.9,6.1747408]
[1753969962555,1e-08,3810.0,3809.9,7.0267408]
[1753969963442,0.002,3811.3,3810.8,2.62412091]
[1753969963615,0.002,3811.3,3810.8,9.81636211]
[1753969963927,0.002,3811.3,3811.2,7.0032455]
[1753969964256,0.002,3811.3,3811.2,11.1692455]
[1753969964762,0.002,3811.3,3811.2,11.3004455]
[1753969965566,0.002,3811.3,3811.2,10.94505335]
[1753969965866,0.042,3811.9,3811.8,2.62343249]
[1753969966103,0.042,3811.9,3811.8,6.78843249]
[1753969966224,0.042,3811.9,3811.8,6.91963249]
[1753969967069,0.042,3811.9,3811.8,7.78543249]
[1753969968750,0.002,3812.2,3811.8,7.78543249]
[1753969968751,0.002,3812.2,3812.1,2.62322604]
[1753969969063,0.04,3812.9,3812.8,2.62274443]
[1753969969267,0.04,3812.9,3812.8,6.78574443]
[1753969971578,0.04,3812.9,3812.8,7.62614443]
[1753969972512,0.04,3812.9,3812.8,11.17614443]
[1753969973070,0.04,3812.9,3812.8,10.62614443]
[1753969974015,0.04,3812.9,3812.8,6.78574443]
[1753969974520,0.04,3812.9,3812.8,9.78574443]
[1753969977074,0.042,3812.9,3812.8,9.78574443]
[1753969978908,0.042,3812.9,3812.8,9.91694443]
[1753969979271,0.042,3812.9,3812.8,10.81234443]
[1753969980311,1e-08,3812.9,3812.8,11.36234443]
[1753969981282,1e-08,3812.9,3812.8,10.64144443]
[1753969981486,1e-08,3812.9,3812.8,11.19144443]
[1753969982012,1e-08,3812.9,3812.8,10.64144443]
[1753969982219,1e-08,3812.9,3812.8,11.19144443]
[1753969982450,1e-08,3812.9,3812.8,6.48344443]
[1753969982604,1e-08,3812.9,3812.8,10.64144443]
[1753969982800,1e-08,3812.9,3812.8,10.64044443]
[1753969983137,1e-08,3812.9,3812.8,6.77974443]
[1753969983458,2.49237422,3813.8,3813.2,2.62246931]
[1753969983616,0.04,3813.9,3813.3,4.183224]
[1753969983801,0.04,3813.9,3813.4,2.62227886]
[1753969984111,2.62205674,3813.8,3813.5,4.157]
[1753969984312,2.62212549,3813.7,3813.6,4.157]
[1753969984715,2.62237995,3813.4,3812.7,2.62278945]
[1753969984901,2.69322637,3813.9,3812.8,4.157]
[1753969985207,2.62225883,3813.6,3812.9,6.77965848]
[1753969985413,2.62225883,3813.6,3813.0,6.779601]
[1753969985608,0.04,3813.9,3813.4,2.62232213]
[1753969985822,0.04,3813.9,3813.5,4.156]
[1753969986204,0.04,3813.9,3813.8,2.62205674]
[1753969986404,0.04,3813.9,3813.8,6.77805674]
[1753969986623,0.04,3813.9,3813.8,4.156]
[1753969987729,0.28178841,3813.9,3813.8,4.156]
[1753969988044,0.04,3813.9,3813.8,4.156]
[1753969988541,0.28190647,3813.9,3813.8,4.156]
[1753969988772,0.28190647,3813.9,3813.4,2.88454614]
[1753969988773,2.62279567,3812.8,3811.4,3.49996725]
[1753969988901,0.659968,3813.9,3812.3,0.19497267]
[1753969988902,0.8164,3812.7,3812.3,0.19497267]
[1753969989239,0.8164,3812.7,3812.4,4.157]
[1753969989641,0.862,3813.3,3812.5,2.64918031]
[1753969989963,0.24193355,3813.2,3812.5,0.0262295]
[1753969990117,0.862,3813.3,3813.2,2.62246931]
[1753969990305,0.862,3813.8,3813.2,4.155]
[1753969990506,0.862,3813.8,3813.7,2.62212549]
[1753969990722,1.10409806,3813.8,3813.7,4.155]
[1753969990920,0.04,3813.9,3813.8,2.62205674]
[1753969991141,0.28212416,3813.9,3813.7,6.77711775]
[1753969991335,0.04,3813.9,3813.8,2.62205674]
[1753969991546,0.28225741,3813.9,3813.8,2.62205674]
[1753969992342,0.28225741,3813.9,3813.8,3.56848328]
[1753969992553,0.28225741,3813.9,3813.8,3.69968328]
[1753969992746,0.04,3813.9,3813.8,3.72590384]
[1753969993039,0.28233257,3813.9,3813.8,6.69968328]
[1753969993241,1e-08,3813.9,3813.8,7.52408328]
[1753969993753,1e-08,3813.9,3813.8,11.67808328]
[1753969994547,0.002,3814.3,3813.9,2.62198799]
[1753969994844,0.002,3814.3,3814.0,6.77590997]
[1753969995356,0.002,3814.3,3814.1,2.62183552]
[1753969995502,0.002,3814.3,3814.2,6.77578176]
[1753969996210,0.002,3814.3,3814.2,4.154]
[1753969996405,0.002,3814.3,3814.2,6.77578176]
[1753969996844,0.002,3814.3,3814.2,6.90698176]
[1753969997045,0.002,3814.3,3814.2,7.8534083]
[1753969997457,0.002,3814.3,3814.2,8.6760083]
[1753969997843,0.04,3814.9,3814.8,2.6213694]
[1753969998161,4.56100361,3816.5,3814.8,7.62318245]
[1753969998162,2.62068242,3815.8,3814.8,7.62318245]
[1753969998313,0.35132824,3815.8,3815.0,2.62122267]
[1753969998510,2.62070242,3815.8,3815.1,4.153]